{"text_format":"2","workbook":"xlsx","n_sheets":6,"sheets":["1_TPAO İGÇK_TESPİTLERİ","2_FİRMA CEVABI","TANIMLAR","BULGU KATEGORİLERİ","3_BULGU KATEGORİLERİ","PUANLAMA"],"not_rendered":{"charts":0,"images":1,"macros":0,"external_links":17,"defined_names":18,"comments":0,"pivot_tables":0},"unopened":[],"bounds":{"document_bytes":16777216,"sheet_cells":100000,"run_cost":"one","rows_first":2000,"rows_last":500,"rows_between":2000,"halvings":0,"cell_chars":16384,"cell_head_chars":4096},"cells_cut":0,"cells_raw":0,"read":"whole","date_system":"1900"}

{"sheet":"1_TPAO İGÇK_TESPİTLERİ","index":0,"n_rows":63,"n_cols":11,"rows_kept":63,"cut":false,"hidden":false,"merged":[[13,0,13,7],[8,0,8,2],[59,0,59,7],[62,0,62,3],[62,6,62,7],[62,4,62,5],[60,0,60,7],[61,0,61,7],[8,7,11,7],[10,0,10,2],[11,3,11,4],[11,0,11,2],[7,10,11,10],[7,3,7,6],[0,2,3,8],[0,0,3,1],[5,0,5,7],[9,0,9,2],[9,3,9,4],[8,3,8,4]]}
["",null,"ALT İŞVEREN / YÜKLENİCİ İSGÇ TUTANAK FORMU "]
[]
[]
[]
[]
["GENEL"]
[]
["Denetlenen Alt İşveren/Yüklenici Firma",{"$nulls":6},"DENETİM PUANI",null,null,"NOT: Satır ekleme yaparken bu kolonda bulunan formülleri eklediğiniz satıra sürükleyiniz"]
["Denetlenen  Alt İşveren/Yüklenici Faaliyeti",{"$nulls":4},"Denetim Ekibi",null,{"$f":"IF(SUM(COUNTIF(G17:G59,{\"TPAO İŞ DURDURMA TALEBİNİN UYGULANMAMASI\";\"TALEP EDİLEN İSGÇ BİLGİ VE BELGELERİNİ İDARE TARAFINDAN VERİLEN SÜRE İÇERİSİNDE SAĞLAMAMAK, YANILTICI BİLGİ VERMEK (DENETİM RAPORLARI HARİÇ)\";\"DENETİME ENGEL OLMAK\";\"İSGÇ İLE MEYDANA GELEN OLAYI İKİ GÜN İÇERİSİNDE YAZILI OLARAK BİLDİRMEMEK, BİLGİ SAKLAMAK VEYA YANILTICI BEYANDA BULUNMAK\"}))>0,0,100-(SUM(K17:K59)/2))","v":100}]
["Denetlenen Proje / Lokasyon/Kamp ",{"$nulls":4},"Denetim Türü"]
["Denetlenen Kule / Ekip",{"$nulls":4},"Denetim Tarihi"]
["Denetlenen Alt İşveren / Yüklenici Firma Temsilcisi",{"$nulls":4},"Son Cevap Verme Tarihi"]
[]
["BULGULAR"]
[]
["Bulgu No","Bulgu Türü","Bulgu Kategorisi","Bulgu Alt Kategorisi","Bulgu Detayı","Görsel","İSGÇ Aykırılık Maddesi","Çalışma Durumu",null,null,"Puan"]
[{"$f":"ROW()-16","v":1},{"$nulls":6},{"$f":"IF(Table1[[#This Row],[İSGÇ Aykırılık Maddesi]]=\"\",\"\",VLOOKUP(Table1[[#This Row],[İSGÇ Aykırılık Maddesi]],PUANLAMA!$C$3:$I$22,7,FALSE))","v":""},null,null,{"$f":"IF(Table1[[#This Row],[İSGÇ Aykırılık Maddesi]]=\"\",0,VLOOKUP(Table1[[#This Row],[İSGÇ Aykırılık Maddesi]],PUANLAMA!$C$3:$G$22,5,FALSE))","v":0}]
[{"$f":"ROW()-16","v":2},{"$nulls":6},{"$f":"IF(Table1[[#This Row],[İSGÇ Aykırılık Maddesi]]=\"\",\"\",VLOOKUP(Table1[[#This Row],[İSGÇ Aykırılık Maddesi]],PUANLAMA!$C$3:$I$22,7,FALSE))","v":""},null,null,{"$f":"IF(Table1[[#This Row],[İSGÇ Aykırılık Maddesi]]=\"\",0,VLOOKUP(Table1[[#This Row],[İSGÇ Aykırılık Maddesi]],PUANLAMA!$C$3:$G$22,5,FALSE))","v":0}]
[{"$f":"ROW()-16","v":3},{"$nulls":6},{"$f":"IF(Table1[[#This Row],[İSGÇ Aykırılık Maddesi]]=\"\",\"\",VLOOKUP(Table1[[#This Row],[İSGÇ Aykırılık Maddesi]],PUANLAMA!$C$3:$I$22,7,FALSE))","v":""},null,null,{"$f":"IF(Table1[[#This Row],[İSGÇ Aykırılık Maddesi]]=\"\",0,VLOOKUP(Table1[[#This Row],[İSGÇ Aykırılık Maddesi]],PUANLAMA!$C$3:$G$22,5,FALSE))","v":0}]
[4,{"$nulls":6},{"$f":"IF(Table1[[#This Row],[İSGÇ Aykırılık Maddesi]]=\"\",\"\",VLOOKUP(Table1[[#This Row],[İSGÇ Aykırılık Maddesi]],PUANLAMA!$C$3:$I$22,7,FALSE))","v":""},null,null,{"$f":"IF(Table1[[#This Row],[İSGÇ Aykırılık Maddesi]]=\"\",0,VLOOKUP(Table1[[#This Row],[İSGÇ Aykırılık Maddesi]],PUANLAMA!$C$3:$G$22,5,FALSE))","v":0}]
[5,{"$nulls":6},{"$f":"IF(Table1[[#This Row],[İSGÇ Aykırılık Maddesi]]=\"\",\"\",VLOOKUP(Table1[[#This Row],[İSGÇ Aykırılık Maddesi]],PUANLAMA!$C$3:$I$22,7,FALSE))","v":""},null,null,{"$f":"IF(Table1[[#This Row],[İSGÇ Aykırılık Maddesi]]=\"\",0,VLOOKUP(Table1[[#This Row],[İSGÇ Aykırılık Maddesi]],PUANLAMA!$C$3:$G$22,5,FALSE))","v":0}]
[6,{"$nulls":6},{"$f":"IF(Table1[[#This Row],[İSGÇ Aykırılık Maddesi]]=\"\",\"\",VLOOKUP(Table1[[#This Row],[İSGÇ Aykırılık Maddesi]],PUANLAMA!$C$3:$I$22,7,FALSE))","v":""},null,null,{"$f":"IF(Table1[[#This Row],[İSGÇ Aykırılık Maddesi]]=\"\",0,VLOOKUP(Table1[[#This Row],[İSGÇ Aykırılık Maddesi]],PUANLAMA!$C$3:$G$22,5,FALSE))","v":0}]
[7,{"$nulls":6},{"$f":"IF(Table1[[#This Row],[İSGÇ Aykırılık Maddesi]]=\"\",\"\",VLOOKUP(Table1[[#This Row],[İSGÇ Aykırılık Maddesi]],PUANLAMA!$C$3:$I$22,7,FALSE))","v":""},null,null,{"$f":"IF(Table1[[#This Row],[İSGÇ Aykırılık Maddesi]]=\"\",0,VLOOKUP(Table1[[#This Row],[İSGÇ Aykırılık Maddesi]],PUANLAMA!$C$3:$G$22,5,FALSE))","v":0}]
[8,{"$nulls":6},{"$f":"IF(Table1[[#This Row],[İSGÇ Aykırılık Maddesi]]=\"\",\"\",VLOOKUP(Table1[[#This Row],[İSGÇ Aykırılık Maddesi]],PUANLAMA!$C$3:$I$22,7,FALSE))","v":""},null,null,{"$f":"IF(Table1[[#This Row],[İSGÇ Aykırılık Maddesi]]=\"\",0,VLOOKUP(Table1[[#This Row],[İSGÇ Aykırılık Maddesi]],PUANLAMA!$C$3:$G$22,5,FALSE))","v":0}]
[9,{"$nulls":6},{"$f":"IF(Table1[[#This Row],[İSGÇ Aykırılık Maddesi]]=\"\",\"\",VLOOKUP(Table1[[#This Row],[İSGÇ Aykırılık Maddesi]],PUANLAMA!$C$3:$I$22,7,FALSE))","v":""},null,null,{"$f":"IF(Table1[[#This Row],[İSGÇ Aykırılık Maddesi]]=\"\",0,VLOOKUP(Table1[[#This Row],[İSGÇ Aykırılık Maddesi]],PUANLAMA!$C$3:$G$22,5,FALSE))","v":0}]
[10,{"$nulls":6},{"$f":"IF(Table1[[#This Row],[İSGÇ Aykırılık Maddesi]]=\"\",\"\",VLOOKUP(Table1[[#This Row],[İSGÇ Aykırılık Maddesi]],PUANLAMA!$C$3:$I$22,7,FALSE))","v":""},null,null,{"$f":"IF(Table1[[#This Row],[İSGÇ Aykırılık Maddesi]]=\"\",0,VLOOKUP(Table1[[#This Row],[İSGÇ Aykırılık Maddesi]],PUANLAMA!$C$3:$G$22,5,FALSE))","v":0}]
[11,{"$nulls":6},{"$f":"IF(Table1[[#This Row],[İSGÇ Aykırılık Maddesi]]=\"\",\"\",VLOOKUP(Table1[[#This Row],[İSGÇ Aykırılık Maddesi]],PUANLAMA!$C$3:$I$22,7,FALSE))","v":""},null,null,{"$f":"IF(Table1[[#This Row],[İSGÇ Aykırılık Maddesi]]=\"\",0,VLOOKUP(Table1[[#This Row],[İSGÇ Aykırılık Maddesi]],PUANLAMA!$C$3:$G$22,5,FALSE))","v":0}]
[12,{"$nulls":6},{"$f":"IF(Table1[[#This Row],[İSGÇ Aykırılık Maddesi]]=\"\",\"\",VLOOKUP(Table1[[#This Row],[İSGÇ Aykırılık Maddesi]],PUANLAMA!$C$3:$I$22,7,FALSE))","v":""},null,null,{"$f":"IF(Table1[[#This Row],[İSGÇ Aykırılık Maddesi]]=\"\",0,VLOOKUP(Table1[[#This Row],[İSGÇ Aykırılık Maddesi]],PUANLAMA!$C$3:$G$22,5,FALSE))","v":0}]
[13,{"$nulls":6},{"$f":"IF(Table1[[#This Row],[İSGÇ Aykırılık Maddesi]]=\"\",\"\",VLOOKUP(Table1[[#This Row],[İSGÇ Aykırılık Maddesi]],PUANLAMA!$C$3:$I$22,7,FALSE))","v":""},null,null,{"$f":"IF(Table1[[#This Row],[İSGÇ Aykırılık Maddesi]]=\"\",0,VLOOKUP(Table1[[#This Row],[İSGÇ Aykırılık Maddesi]],PUANLAMA!$C$3:$G$22,5,FALSE))","v":0}]
[14,{"$nulls":6},{"$f":"IF(Table1[[#This Row],[İSGÇ Aykırılık Maddesi]]=\"\",\"\",VLOOKUP(Table1[[#This Row],[İSGÇ Aykırılık Maddesi]],PUANLAMA!$C$3:$I$22,7,FALSE))","v":""},null,null,{"$f":"IF(Table1[[#This Row],[İSGÇ Aykırılık Maddesi]]=\"\",0,VLOOKUP(Table1[[#This Row],[İSGÇ Aykırılık Maddesi]],PUANLAMA!$C$3:$G$22,5,FALSE))","v":0}]
[15,{"$nulls":6},{"$f":"IF(Table1[[#This Row],[İSGÇ Aykırılık Maddesi]]=\"\",\"\",VLOOKUP(Table1[[#This Row],[İSGÇ Aykırılık Maddesi]],PUANLAMA!$C$3:$I$22,7,FALSE))","v":""},null,null,{"$f":"IF(Table1[[#This Row],[İSGÇ Aykırılık Maddesi]]=\"\",0,VLOOKUP(Table1[[#This Row],[İSGÇ Aykırılık Maddesi]],PUANLAMA!$C$3:$G$22,5,FALSE))","v":0}]
[16,{"$nulls":6},{"$f":"IF(Table1[[#This Row],[İSGÇ Aykırılık Maddesi]]=\"\",\"\",VLOOKUP(Table1[[#This Row],[İSGÇ Aykırılık Maddesi]],PUANLAMA!$C$3:$I$22,7,FALSE))","v":""},null,null,{"$f":"IF(Table1[[#This Row],[İSGÇ Aykırılık Maddesi]]=\"\",0,VLOOKUP(Table1[[#This Row],[İSGÇ Aykırılık Maddesi]],PUANLAMA!$C$3:$G$22,5,FALSE))","v":0}]
[17,{"$nulls":6},{"$f":"IF(Table1[[#This Row],[İSGÇ Aykırılık Maddesi]]=\"\",\"\",VLOOKUP(Table1[[#This Row],[İSGÇ Aykırılık Maddesi]],PUANLAMA!$C$3:$I$22,7,FALSE))","v":""},null,null,{"$f":"IF(Table1[[#This Row],[İSGÇ Aykırılık Maddesi]]=\"\",0,VLOOKUP(Table1[[#This Row],[İSGÇ Aykırılık Maddesi]],PUANLAMA!$C$3:$G$22,5,FALSE))","v":0}]
[18,{"$nulls":6},{"$f":"IF(Table1[[#This Row],[İSGÇ Aykırılık Maddesi]]=\"\",\"\",VLOOKUP(Table1[[#This Row],[İSGÇ Aykırılık Maddesi]],PUANLAMA!$C$3:$I$22,7,FALSE))","v":""},null,null,{"$f":"IF(Table1[[#This Row],[İSGÇ Aykırılık Maddesi]]=\"\",0,VLOOKUP(Table1[[#This Row],[İSGÇ Aykırılık Maddesi]],PUANLAMA!$C$3:$G$22,5,FALSE))","v":0}]
[19,{"$nulls":6},{"$f":"IF(Table1[[#This Row],[İSGÇ Aykırılık Maddesi]]=\"\",\"\",VLOOKUP(Table1[[#This Row],[İSGÇ Aykırılık Maddesi]],PUANLAMA!$C$3:$I$22,7,FALSE))","v":""},null,null,{"$f":"IF(Table1[[#This Row],[İSGÇ Aykırılık Maddesi]]=\"\",0,VLOOKUP(Table1[[#This Row],[İSGÇ Aykırılık Maddesi]],PUANLAMA!$C$3:$G$22,5,FALSE))","v":0}]
[20,{"$nulls":6},{"$f":"IF(Table1[[#This Row],[İSGÇ Aykırılık Maddesi]]=\"\",\"\",VLOOKUP(Table1[[#This Row],[İSGÇ Aykırılık Maddesi]],PUANLAMA!$C$3:$I$22,7,FALSE))","v":""},null,null,{"$f":"IF(Table1[[#This Row],[İSGÇ Aykırılık Maddesi]]=\"\",0,VLOOKUP(Table1[[#This Row],[İSGÇ Aykırılık Maddesi]],PUANLAMA!$C$3:$G$22,5,FALSE))","v":0}]
[21,{"$nulls":6},{"$f":"IF(Table1[[#This Row],[İSGÇ Aykırılık Maddesi]]=\"\",\"\",VLOOKUP(Table1[[#This Row],[İSGÇ Aykırılık Maddesi]],PUANLAMA!$C$3:$I$22,7,FALSE))","v":""},null,null,{"$f":"IF(Table1[[#This Row],[İSGÇ Aykırılık Maddesi]]=\"\",0,VLOOKUP(Table1[[#This Row],[İSGÇ Aykırılık Maddesi]],PUANLAMA!$C$3:$G$22,5,FALSE))","v":0}]
[22,{"$nulls":6},{"$f":"IF(Table1[[#This Row],[İSGÇ Aykırılık Maddesi]]=\"\",\"\",VLOOKUP(Table1[[#This Row],[İSGÇ Aykırılık Maddesi]],PUANLAMA!$C$3:$I$22,7,FALSE))","v":""},null,null,{"$f":"IF(Table1[[#This Row],[İSGÇ Aykırılık Maddesi]]=\"\",0,VLOOKUP(Table1[[#This Row],[İSGÇ Aykırılık Maddesi]],PUANLAMA!$C$3:$G$22,5,FALSE))","v":0}]
[23,{"$nulls":6},{"$f":"IF(Table1[[#This Row],[İSGÇ Aykırılık Maddesi]]=\"\",\"\",VLOOKUP(Table1[[#This Row],[İSGÇ Aykırılık Maddesi]],PUANLAMA!$C$3:$I$22,7,FALSE))","v":""},null,null,{"$f":"IF(Table1[[#This Row],[İSGÇ Aykırılık Maddesi]]=\"\",0,VLOOKUP(Table1[[#This Row],[İSGÇ Aykırılık Maddesi]],PUANLAMA!$C$3:$G$22,5,FALSE))","v":0}]
[24,{"$nulls":6},{"$f":"IF(Table1[[#This Row],[İSGÇ Aykırılık Maddesi]]=\"\",\"\",VLOOKUP(Table1[[#This Row],[İSGÇ Aykırılık Maddesi]],PUANLAMA!$C$3:$I$22,7,FALSE))","v":""},null,null,{"$f":"IF(Table1[[#This Row],[İSGÇ Aykırılık Maddesi]]=\"\",0,VLOOKUP(Table1[[#This Row],[İSGÇ Aykırılık Maddesi]],PUANLAMA!$C$3:$G$22,5,FALSE))","v":0}]
[25,{"$nulls":6},{"$f":"IF(Table1[[#This Row],[İSGÇ Aykırılık Maddesi]]=\"\",\"\",VLOOKUP(Table1[[#This Row],[İSGÇ Aykırılık Maddesi]],PUANLAMA!$C$3:$I$22,7,FALSE))","v":""},null,null,{"$f":"IF(Table1[[#This Row],[İSGÇ Aykırılık Maddesi]]=\"\",0,VLOOKUP(Table1[[#This Row],[İSGÇ Aykırılık Maddesi]],PUANLAMA!$C$3:$G$22,5,FALSE))","v":0}]
[26,{"$nulls":6},{"$f":"IF(Table1[[#This Row],[İSGÇ Aykırılık Maddesi]]=\"\",\"\",VLOOKUP(Table1[[#This Row],[İSGÇ Aykırılık Maddesi]],PUANLAMA!$C$3:$I$22,7,FALSE))","v":""},null,null,{"$f":"IF(Table1[[#This Row],[İSGÇ Aykırılık Maddesi]]=\"\",0,VLOOKUP(Table1[[#This Row],[İSGÇ Aykırılık Maddesi]],PUANLAMA!$C$3:$G$22,5,FALSE))","v":0}]
[27,{"$nulls":6},{"$f":"IF(Table1[[#This Row],[İSGÇ Aykırılık Maddesi]]=\"\",\"\",VLOOKUP(Table1[[#This Row],[İSGÇ Aykırılık Maddesi]],PUANLAMA!$C$3:$I$22,7,FALSE))","v":""},null,null,{"$f":"IF(Table1[[#This Row],[İSGÇ Aykırılık Maddesi]]=\"\",0,VLOOKUP(Table1[[#This Row],[İSGÇ Aykırılık Maddesi]],PUANLAMA!$C$3:$G$22,5,FALSE))","v":0}]
[28,{"$nulls":6},{"$f":"IF(Table1[[#This Row],[İSGÇ Aykırılık Maddesi]]=\"\",\"\",VLOOKUP(Table1[[#This Row],[İSGÇ Aykırılık Maddesi]],PUANLAMA!$C$3:$I$22,7,FALSE))","v":""},null,null,{"$f":"IF(Table1[[#This Row],[İSGÇ Aykırılık Maddesi]]=\"\",0,VLOOKUP(Table1[[#This Row],[İSGÇ Aykırılık Maddesi]],PUANLAMA!$C$3:$G$22,5,FALSE))","v":0}]
[29,{"$nulls":6},{"$f":"IF(Table1[[#This Row],[İSGÇ Aykırılık Maddesi]]=\"\",\"\",VLOOKUP(Table1[[#This Row],[İSGÇ Aykırılık Maddesi]],PUANLAMA!$C$3:$I$22,7,FALSE))","v":""},null,null,{"$f":"IF(Table1[[#This Row],[İSGÇ Aykırılık Maddesi]]=\"\",0,VLOOKUP(Table1[[#This Row],[İSGÇ Aykırılık Maddesi]],PUANLAMA!$C$3:$G$22,5,FALSE))","v":0}]
[30,{"$nulls":6},{"$f":"IF(Table1[[#This Row],[İSGÇ Aykırılık Maddesi]]=\"\",\"\",VLOOKUP(Table1[[#This Row],[İSGÇ Aykırılık Maddesi]],PUANLAMA!$C$3:$I$22,7,FALSE))","v":""},null,null,{"$f":"IF(Table1[[#This Row],[İSGÇ Aykırılık Maddesi]]=\"\",0,VLOOKUP(Table1[[#This Row],[İSGÇ Aykırılık Maddesi]],PUANLAMA!$C$3:$G$22,5,FALSE))","v":0}]
[31,{"$nulls":6},{"$f":"IF(Table1[[#This Row],[İSGÇ Aykırılık Maddesi]]=\"\",\"\",VLOOKUP(Table1[[#This Row],[İSGÇ Aykırılık Maddesi]],PUANLAMA!$C$3:$I$22,7,FALSE))","v":""},null,null,{"$f":"IF(Table1[[#This Row],[İSGÇ Aykırılık Maddesi]]=\"\",0,VLOOKUP(Table1[[#This Row],[İSGÇ Aykırılık Maddesi]],PUANLAMA!$C$3:$G$22,5,FALSE))","v":0}]
[32,{"$nulls":6},{"$f":"IF(Table1[[#This Row],[İSGÇ Aykırılık Maddesi]]=\"\",\"\",VLOOKUP(Table1[[#This Row],[İSGÇ Aykırılık Maddesi]],PUANLAMA!$C$3:$I$22,7,FALSE))","v":""},null,null,{"$f":"IF(Table1[[#This Row],[İSGÇ Aykırılık Maddesi]]=\"\",0,VLOOKUP(Table1[[#This Row],[İSGÇ Aykırılık Maddesi]],PUANLAMA!$C$3:$G$22,5,FALSE))","v":0}]
[33,{"$nulls":6},{"$f":"IF(Table1[[#This Row],[İSGÇ Aykırılık Maddesi]]=\"\",\"\",VLOOKUP(Table1[[#This Row],[İSGÇ Aykırılık Maddesi]],PUANLAMA!$C$3:$I$22,7,FALSE))","v":""},null,null,{"$f":"IF(Table1[[#This Row],[İSGÇ Aykırılık Maddesi]]=\"\",0,VLOOKUP(Table1[[#This Row],[İSGÇ Aykırılık Maddesi]],PUANLAMA!$C$3:$G$22,5,FALSE))","v":0}]
[34,{"$nulls":6},{"$f":"IF(Table1[[#This Row],[İSGÇ Aykırılık Maddesi]]=\"\",\"\",VLOOKUP(Table1[[#This Row],[İSGÇ Aykırılık Maddesi]],PUANLAMA!$C$3:$I$22,7,FALSE))","v":""},null,null,{"$f":"IF(Table1[[#This Row],[İSGÇ Aykırılık Maddesi]]=\"\",0,VLOOKUP(Table1[[#This Row],[İSGÇ Aykırılık Maddesi]],PUANLAMA!$C$3:$G$22,5,FALSE))","v":0}]
[35,{"$nulls":6},{"$f":"IF(Table1[[#This Row],[İSGÇ Aykırılık Maddesi]]=\"\",\"\",VLOOKUP(Table1[[#This Row],[İSGÇ Aykırılık Maddesi]],PUANLAMA!$C$3:$I$22,7,FALSE))","v":""},null,null,{"$f":"IF(Table1[[#This Row],[İSGÇ Aykırılık Maddesi]]=\"\",0,VLOOKUP(Table1[[#This Row],[İSGÇ Aykırılık Maddesi]],PUANLAMA!$C$3:$G$22,5,FALSE))","v":0}]
[36,{"$nulls":6},{"$f":"IF(Table1[[#This Row],[İSGÇ Aykırılık Maddesi]]=\"\",\"\",VLOOKUP(Table1[[#This Row],[İSGÇ Aykırılık Maddesi]],PUANLAMA!$C$3:$I$22,7,FALSE))","v":""},null,null,{"$f":"IF(Table1[[#This Row],[İSGÇ Aykırılık Maddesi]]=\"\",0,VLOOKUP(Table1[[#This Row],[İSGÇ Aykırılık Maddesi]],PUANLAMA!$C$3:$G$22,5,FALSE))","v":0}]
[37,{"$nulls":6},{"$f":"IF(Table1[[#This Row],[İSGÇ Aykırılık Maddesi]]=\"\",\"\",VLOOKUP(Table1[[#This Row],[İSGÇ Aykırılık Maddesi]],PUANLAMA!$C$3:$I$22,7,FALSE))","v":""},null,null,{"$f":"IF(Table1[[#This Row],[İSGÇ Aykırılık Maddesi]]=\"\",0,VLOOKUP(Table1[[#This Row],[İSGÇ Aykırılık Maddesi]],PUANLAMA!$C$3:$G$22,5,FALSE))","v":0}]
[38,{"$nulls":6},{"$f":"IF(Table1[[#This Row],[İSGÇ Aykırılık Maddesi]]=\"\",\"\",VLOOKUP(Table1[[#This Row],[İSGÇ Aykırılık Maddesi]],PUANLAMA!$C$3:$I$22,7,FALSE))","v":""},null,null,{"$f":"IF(Table1[[#This Row],[İSGÇ Aykırılık Maddesi]]=\"\",0,VLOOKUP(Table1[[#This Row],[İSGÇ Aykırılık Maddesi]],PUANLAMA!$C$3:$G$22,5,FALSE))","v":0}]
[39,{"$nulls":6},{"$f":"IF(Table1[[#This Row],[İSGÇ Aykırılık Maddesi]]=\"\",\"\",VLOOKUP(Table1[[#This Row],[İSGÇ Aykırılık Maddesi]],PUANLAMA!$C$3:$I$22,7,FALSE))","v":""},null,null,{"$f":"IF(Table1[[#This Row],[İSGÇ Aykırılık Maddesi]]=\"\",0,VLOOKUP(Table1[[#This Row],[İSGÇ Aykırılık Maddesi]],PUANLAMA!$C$3:$G$22,5,FALSE))","v":0}]
[40,{"$nulls":6},{"$f":"IF(Table1[[#This Row],[İSGÇ Aykırılık Maddesi]]=\"\",\"\",VLOOKUP(Table1[[#This Row],[İSGÇ Aykırılık Maddesi]],PUANLAMA!$C$3:$I$22,7,FALSE))","v":""},null,null,{"$f":"IF(Table1[[#This Row],[İSGÇ Aykırılık Maddesi]]=\"\",0,VLOOKUP(Table1[[#This Row],[İSGÇ Aykırılık Maddesi]],PUANLAMA!$C$3:$G$22,5,FALSE))","v":0}]
[41,{"$nulls":6},{"$f":"IF(Table1[[#This Row],[İSGÇ Aykırılık Maddesi]]=\"\",\"\",VLOOKUP(Table1[[#This Row],[İSGÇ Aykırılık Maddesi]],PUANLAMA!$C$3:$I$22,7,FALSE))","v":""},null,null,{"$f":"IF(Table1[[#This Row],[İSGÇ Aykırılık Maddesi]]=\"\",0,VLOOKUP(Table1[[#This Row],[İSGÇ Aykırılık Maddesi]],PUANLAMA!$C$3:$G$22,5,FALSE))","v":0}]
[42,{"$nulls":6},{"$f":"IF(Table1[[#This Row],[İSGÇ Aykırılık Maddesi]]=\"\",\"\",VLOOKUP(Table1[[#This Row],[İSGÇ Aykırılık Maddesi]],PUANLAMA!$C$3:$I$22,7,FALSE))","v":""},null,null,{"$f":"IF(Table1[[#This Row],[İSGÇ Aykırılık Maddesi]]=\"\",0,VLOOKUP(Table1[[#This Row],[İSGÇ Aykırılık Maddesi]],PUANLAMA!$C$3:$G$22,5,FALSE))","v":0}]
[43,{"$nulls":6},{"$f":"IF(Table1[[#This Row],[İSGÇ Aykırılık Maddesi]]=\"\",\"\",VLOOKUP(Table1[[#This Row],[İSGÇ Aykırılık Maddesi]],PUANLAMA!$C$3:$I$22,7,FALSE))","v":""},null,null,{"$f":"IF(Table1[[#This Row],[İSGÇ Aykırılık Maddesi]]=\"\",0,VLOOKUP(Table1[[#This Row],[İSGÇ Aykırılık Maddesi]],PUANLAMA!$C$3:$G$22,5,FALSE))","v":0}]
[]
["Aşağıda imzası bulunan taraflarca, yapılan gözlem ve değerlendirmeler sonucu, yukarıda bahsedilen uygunsuzluklar tespit edilmiştir. Tespit edilen uygunsuzluklar sebebiyle;"]
["İşin durdurulması ve/veya çalışanın uzaklaştırılmasını gerektiren bulgular için, uygunsuzluk giderilene kadar çalışma başlatılmayacaktır. Diğer bulguların 15 gün içerisinde giderilmesi zorunludur. 15 gün içinde giderilmeyen bulgular için Düzeltici Faaliyet (DF) süreci başlatılacaktır."]
["TPAO İGÇK Birimi Temsilcisi",null,null,null,"TPAO İş Sahibi Ünite Temsilcisi ",null,"Alt İşveren/Yüklenici Firma Temsilcisi"]

{"sheet":"2_FİRMA CEVABI","index":1,"n_rows":60,"n_cols":20,"rows_kept":60,"cut":false,"hidden":false,"merged":[[13,18,13,19],[36,10,36,12],[36,13,36,14],[36,15,36,16],[37,1,37,3],[37,4,37,7],[37,8,37,9],[37,10,37,12],[37,13,37,14],[37,15,37,16],[34,1,34,3],[34,4,34,7],[34,8,34,9],[34,10,34,12],[34,13,34,14],[34,15,34,16],[35,1,35,3],[35,4,35,7],[35,8,35,9],[35,10,35,12],[35,13,35,14],[35,15,35,16],[15,15,15,16],[15,13,15,14],[15,10,15,12],[15,8,15,9],[15,4,15,7],[15,1,15,3],[18,15,18,16],[16,13,16,14],[16,15,16,16],[17,1,17,3],[17,4,17,7],[17,8,17,9],[17,10,17,12],[17,13,17,14],[17,15,17,16],[16,1,16,3],[16,4,16,7],[16,8,16,9],[16,10,16,12],[18,1,18,3],[18,4,18,7],[18,8,18,9],[18,10,18,12],[18,13,18,14],[0,0,3,1],[7,0,7,2],[11,0,11,2],[11,3,11,7],[11,8,11,9],[11,10,11,16],[10,0,10,2],[10,3,10,7],[10,8,10,9],[10,10,10,16],[0,2,3,19],[5,0,5,19],[7,3,7,19],[9,18,11,19],[8,18,8,19],[13,0,13,16],[8,0,8,2],[8,3,8,7],[8,8,8,9],[8,10,8,16],[9,0,9,2],[9,3,9,7],[9,8,9,9],[9,10,9,16],[20,1,20,3],[20,4,20,7],[20,8,20,9],[20,10,20,12],[20,13,20,14],[20,15,20,16],[19,1,19,3],[19,4,19,7],[19,8,19,9],[19,10,19,12],[19,13,19,14],[19,15,19,16],[22,1,22,3],[22,4,22,7],[22,8,22,9],[22,10,22,12],[22,13,22,14],[22,15,22,16],[21,1,21,3],[21,4,21,7],[21,8,21,9],[21,10,21,12],[21,13,21,14],[21,15,21,16],[24,1,24,3],[24,4,24,7],[24,8,24,9],[24,10,24,12],[24,13,24,14],[24,15,24,16],[23,1,23,3],[23,4,23,7],[23,8,23,9],[23,10,23,12],[23,13,23,14],[23,15,23,16],[26,1,26,3],[26,4,26,7],[26,8,26,9],[26,10,26,12],[26,13,26,14],[26,15,26,16],[25,1,25,3],[25,4,25,7],[25,8,25,9],[25,10,25,12],[25,13,25,14],[25,15,25,16],[28,1,28,3],[28,4,28,7],[28,8,28,9],[28,10,28,12],[28,13,28,14],[28,15,28,16],[27,1,27,3],[27,4,27,7],[27,8,27,9],[27,10,27,12],[27,13,27,14],[27,15,27,16],[30,1,30,3],[30,4,30,7],[30,8,30,9],[30,10,30,12],[30,13,30,14],[30,15,30,16],[29,1,29,3],[29,4,29,7],[29,8,29,9],[29,10,29,12],[29,13,29,14],[29,15,29,16],[32,10,32,12],[32,13,32,14],[32,15,32,16],[31,1,31,3],[31,4,31,7],[31,8,31,9],[31,10,31,12],[31,13,31,14],[31,15,31,16],[32,1,32,3],[32,4,32,7],[32,8,32,9],[41,1,41,3],[41,4,41,7],[41,8,41,9],[41,10,41,12],[41,13,41,14],[41,15,41,16],[33,1,33,3],[33,4,33,7],[33,8,33,9],[33,10,33,12],[33,13,33,14],[33,15,33,16],[36,1,36,3],[36,4,36,7],[36,8,36,9],[38,1,38,3],[38,4,38,7],[38,8,38,9],[38,10,38,12],[38,13,38,14],[38,15,38,16],[39,1,39,3],[39,4,39,7],[39,8,39,9],[42,1,42,3],[42,4,42,7],[42,8,42,9],[42,10,42,12],[42,13,42,14],[42,15,42,16],[43,1,43,3],[43,4,43,7],[43,8,43,9],[43,10,43,12],[43,13,43,14],[43,15,43,16],[44,1,44,3],[44,4,44,7],[44,8,44,9],[44,10,44,12],[44,13,44,14],[44,15,44,16],[45,1,45,3],[45,4,45,7],[45,8,45,9],[45,10,45,12],[45,13,45,14],[45,15,45,16],[46,1,46,3],[46,4,46,7],[46,8,46,9],[46,10,46,12],[46,13,46,14],[46,15,46,16],[47,1,47,3],[47,4,47,7],[47,8,47,9],[47,10,47,12],[47,13,47,14],[47,15,47,16],[39,10,39,12],[39,13,39,14],[39,15,39,16],[40,1,40,3],[40,4,40,7],[40,8,40,9],[40,10,40,12],[40,13,40,14],[40,15,40,16],[48,1,48,3],[48,4,48,7],[48,8,48,9],[48,10,48,12],[48,13,48,14],[48,15,48,16],[49,1,49,3],[49,4,49,7],[49,8,49,9],[49,10,49,12],[49,13,49,14],[49,15,49,16],[50,1,50,3],[50,4,50,7],[50,8,50,9],[50,10,50,12],[50,13,50,14],[50,15,50,16],[51,1,51,3],[51,4,51,7],[51,8,51,9],[51,10,51,12],[51,13,51,14],[51,15,51,16],[52,1,52,3],[52,4,52,7],[52,8,52,9],[52,10,52,12],[52,13,52,14],[52,15,52,16],[53,1,53,3],[53,4,53,7],[53,8,53,9],[53,10,53,12],[53,13,53,14],[53,15,53,16],[54,1,54,3],[54,4,54,7],[54,8,54,9],[54,10,54,12],[54,13,54,14],[54,15,54,16],[55,1,55,3],[55,4,55,7],[55,8,55,9],[55,10,55,12],[55,13,55,14],[55,15,55,16],[56,1,56,3],[56,4,56,7],[56,8,56,9],[56,10,56,12],[56,13,56,14],[56,15,56,16],[57,1,57,3],[57,4,57,7],[57,8,57,9],[57,10,57,12],[57,13,57,14],[57,15,57,16],[58,1,58,3],[58,4,58,7],[58,8,58,9],[58,10,58,12],[58,13,58,14],[58,15,58,16],[59,1,59,3],[59,4,59,7],[59,8,59,9],[59,10,59,12],[59,13,59,14],[59,15,59,16],[62,1,62,3],[62,4,62,7],[62,8,62,9],[62,10,62,12],[62,13,62,14],[62,15,62,16],[60,1,60,3],[60,4,60,7],[60,8,60,9],[60,10,60,12],[60,13,60,14],[60,15,60,16],[61,1,61,3],[61,4,61,7],[61,8,61,9],[61,10,61,12],[61,13,61,14],[61,15,61,16]]}
["",null,"ALT İŞVEREN / YÜKLENİCİ İSGÇ TUTANAK FORMU "]
[]
[]
[]
[]
["GENEL"]
[]
["Denetlenen Alt İşveren / Yüklenici Firma",null,null,{"$f":"IF('1_TPAO İGÇK_TESPİTLERİ'!D8=\"\",\"\",'1_TPAO İGÇK_TESPİTLERİ'!D8)","v":""}]
["Denetlenen  Alt İşveren / Yüklenici Faaliyeti",null,null,{"$f":"IF('1_TPAO İGÇK_TESPİTLERİ'!D9=\"\",\"\",'1_TPAO İGÇK_TESPİTLERİ'!D9)","v":""},{"$nulls":4},"Denetim Ekibi",null,{"$f":"IF('1_TPAO İGÇK_TESPİTLERİ'!D9=\"\",\"\",'1_TPAO İGÇK_TESPİTLERİ'!G9)","v":""},{"$nulls":7},{"$f":"'1_TPAO İGÇK_TESPİTLERİ'!H8","v":"DENETİM PUANI"}]
["Denetlenen Proje / Lokasyon",null,null,{"$f":"IF('1_TPAO İGÇK_TESPİTLERİ'!D10=\"\",\"\",'1_TPAO İGÇK_TESPİTLERİ'!D10)","v":""},{"$nulls":4},"Denetim Türü",null,{"$f":"IF('1_TPAO İGÇK_TESPİTLERİ'!D10=\"\",\"\",'1_TPAO İGÇK_TESPİTLERİ'!G10)","v":""},{"$nulls":7},{"$f":"'1_TPAO İGÇK_TESPİTLERİ'!H9","v":100}]
["Denetlenen Kule / Ekip",null,null,{"$f":"IF('1_TPAO İGÇK_TESPİTLERİ'!D11=\"\",\"\",'1_TPAO İGÇK_TESPİTLERİ'!D11)","v":""},{"$nulls":4},"Denetim Tarihi",null,{"$f":"IF('1_TPAO İGÇK_TESPİTLERİ'!D11=\"\",\"\",'1_TPAO İGÇK_TESPİTLERİ'!G11)","v":""}]
["Denetlenen Alt İşveren / Yüklenici Firma Temsilcisi",null,null,{"$f":"IF('1_TPAO İGÇK_TESPİTLERİ'!D12=\"\",\"\",'1_TPAO İGÇK_TESPİTLERİ'!D12)","v":""},{"$nulls":4},"Son Cevap Verme Tarihi",null,{"$f":"IF('1_TPAO İGÇK_TESPİTLERİ'!D12=\"\",\"\",'1_TPAO İGÇK_TESPİTLERİ'!G12)","v":""}]
[]
["DENETLENEN FİRMA CEVABI",{"$nulls":17},"İGÇK BİRİMİ DEĞERLENDİRMESİ"]
[]
["Bulgu No","Bulgu Detayı",null,null,"Alınan Aksiyon (Giderildi ise)",null,null,null,"Görsel",null,"Alınacak Aksiyon",null,null,"Sorumlu Kişi(ler)",null,"Termin Tarihi",null,null,"Giderilme Durumu","DF No"]
[{"$f":"'1_TPAO İGÇK_TESPİTLERİ'!A17","v":1},{"$f":"IF('1_TPAO İGÇK_TESPİTLERİ'!E17=\"\",\"\",'1_TPAO İGÇK_TESPİTLERİ'!E17)","v":""}]
[{"$f":"'1_TPAO İGÇK_TESPİTLERİ'!A18","v":2},{"$f":"IF('1_TPAO İGÇK_TESPİTLERİ'!E18=\"\",\"\",'1_TPAO İGÇK_TESPİTLERİ'!E18)","v":""}]
[{"$f":"'1_TPAO İGÇK_TESPİTLERİ'!A19","v":3},{"$f":"IF('1_TPAO İGÇK_TESPİTLERİ'!E19=\"\",\"\",'1_TPAO İGÇK_TESPİTLERİ'!E19)","v":""}]
[{"$f":"'1_TPAO İGÇK_TESPİTLERİ'!A20","v":4},{"$f":"IF('1_TPAO İGÇK_TESPİTLERİ'!E20=\"\",\"\",'1_TPAO İGÇK_TESPİTLERİ'!E20)","v":""}]
[{"$f":"'1_TPAO İGÇK_TESPİTLERİ'!A21","v":5},{"$f":"IF('1_TPAO İGÇK_TESPİTLERİ'!E21=\"\",\"\",'1_TPAO İGÇK_TESPİTLERİ'!E21)","v":""}]
[{"$f":"'1_TPAO İGÇK_TESPİTLERİ'!A22","v":6},{"$f":"IF('1_TPAO İGÇK_TESPİTLERİ'!E22=\"\",\"\",'1_TPAO İGÇK_TESPİTLERİ'!E22)","v":""}]
[{"$f":"'1_TPAO İGÇK_TESPİTLERİ'!A23","v":7},{"$f":"IF('1_TPAO İGÇK_TESPİTLERİ'!E23=\"\",\"\",'1_TPAO İGÇK_TESPİTLERİ'!E23)","v":""}]
[{"$f":"'1_TPAO İGÇK_TESPİTLERİ'!A24","v":8},{"$f":"IF('1_TPAO İGÇK_TESPİTLERİ'!E24=\"\",\"\",'1_TPAO İGÇK_TESPİTLERİ'!E24)","v":""}]
[{"$f":"'1_TPAO İGÇK_TESPİTLERİ'!A25","v":9},{"$f":"IF('1_TPAO İGÇK_TESPİTLERİ'!E25=\"\",\"\",'1_TPAO İGÇK_TESPİTLERİ'!E25)","v":""}]
[{"$f":"'1_TPAO İGÇK_TESPİTLERİ'!A26","v":10},{"$f":"IF('1_TPAO İGÇK_TESPİTLERİ'!E26=\"\",\"\",'1_TPAO İGÇK_TESPİTLERİ'!E26)","v":""}]
[{"$f":"'1_TPAO İGÇK_TESPİTLERİ'!A27","v":11},{"$f":"IF('1_TPAO İGÇK_TESPİTLERİ'!E27=\"\",\"\",'1_TPAO İGÇK_TESPİTLERİ'!E27)","v":""}]
[{"$f":"'1_TPAO İGÇK_TESPİTLERİ'!A28","v":12},{"$f":"IF('1_TPAO İGÇK_TESPİTLERİ'!E28=\"\",\"\",'1_TPAO İGÇK_TESPİTLERİ'!E28)","v":""}]
[{"$f":"'1_TPAO İGÇK_TESPİTLERİ'!A29","v":13},{"$f":"IF('1_TPAO İGÇK_TESPİTLERİ'!E29=\"\",\"\",'1_TPAO İGÇK_TESPİTLERİ'!E29)","v":""}]
[{"$f":"'1_TPAO İGÇK_TESPİTLERİ'!A30","v":14},{"$f":"IF('1_TPAO İGÇK_TESPİTLERİ'!E30=\"\",\"\",'1_TPAO İGÇK_TESPİTLERİ'!E30)","v":""}]
[{"$f":"'1_TPAO İGÇK_TESPİTLERİ'!A31","v":15},{"$f":"IF('1_TPAO İGÇK_TESPİTLERİ'!E31=\"\",\"\",'1_TPAO İGÇK_TESPİTLERİ'!E31)","v":""}]
[{"$f":"'1_TPAO İGÇK_TESPİTLERİ'!A32","v":16},{"$f":"IF('1_TPAO İGÇK_TESPİTLERİ'!E32=\"\",\"\",'1_TPAO İGÇK_TESPİTLERİ'!E32)","v":""}]
[{"$f":"'1_TPAO İGÇK_TESPİTLERİ'!A33","v":17},{"$f":"IF('1_TPAO İGÇK_TESPİTLERİ'!E33=\"\",\"\",'1_TPAO İGÇK_TESPİTLERİ'!E33)","v":""}]
[{"$f":"'1_TPAO İGÇK_TESPİTLERİ'!A34","v":18},{"$f":"IF('1_TPAO İGÇK_TESPİTLERİ'!E34=\"\",\"\",'1_TPAO İGÇK_TESPİTLERİ'!E34)","v":""}]
[{"$f":"'1_TPAO İGÇK_TESPİTLERİ'!A35","v":19},{"$f":"IF('1_TPAO İGÇK_TESPİTLERİ'!E35=\"\",\"\",'1_TPAO İGÇK_TESPİTLERİ'!E35)","v":""}]
[{"$f":"'1_TPAO İGÇK_TESPİTLERİ'!A36","v":20},{"$f":"IF('1_TPAO İGÇK_TESPİTLERİ'!E36=\"\",\"\",'1_TPAO İGÇK_TESPİTLERİ'!E36)","v":""}]
[{"$f":"'1_TPAO İGÇK_TESPİTLERİ'!A37","v":21},{"$f":"IF('1_TPAO İGÇK_TESPİTLERİ'!E37=\"\",\"\",'1_TPAO İGÇK_TESPİTLERİ'!E37)","v":""}]
[{"$f":"'1_TPAO İGÇK_TESPİTLERİ'!A38","v":22},{"$f":"IF('1_TPAO İGÇK_TESPİTLERİ'!E38=\"\",\"\",'1_TPAO İGÇK_TESPİTLERİ'!E38)","v":""}]
[{"$f":"'1_TPAO İGÇK_TESPİTLERİ'!A39","v":23},{"$f":"IF('1_TPAO İGÇK_TESPİTLERİ'!E39=\"\",\"\",'1_TPAO İGÇK_TESPİTLERİ'!E39)","v":""}]
[{"$f":"'1_TPAO İGÇK_TESPİTLERİ'!A40","v":24},{"$f":"IF('1_TPAO İGÇK_TESPİTLERİ'!E40=\"\",\"\",'1_TPAO İGÇK_TESPİTLERİ'!E40)","v":""}]
[{"$f":"'1_TPAO İGÇK_TESPİTLERİ'!A41","v":25},{"$f":"IF('1_TPAO İGÇK_TESPİTLERİ'!E41=\"\",\"\",'1_TPAO İGÇK_TESPİTLERİ'!E41)","v":""}]
[{"$f":"'1_TPAO İGÇK_TESPİTLERİ'!A42","v":26},{"$f":"IF('1_TPAO İGÇK_TESPİTLERİ'!E42=\"\",\"\",'1_TPAO İGÇK_TESPİTLERİ'!E42)","v":""}]
[{"$f":"'1_TPAO İGÇK_TESPİTLERİ'!A43","v":27},{"$f":"IF('1_TPAO İGÇK_TESPİTLERİ'!E43=\"\",\"\",'1_TPAO İGÇK_TESPİTLERİ'!E43)","v":""}]
[{"$f":"'1_TPAO İGÇK_TESPİTLERİ'!A44","v":28},{"$f":"IF('1_TPAO İGÇK_TESPİTLERİ'!E44=\"\",\"\",'1_TPAO İGÇK_TESPİTLERİ'!E44)","v":""}]
[{"$f":"'1_TPAO İGÇK_TESPİTLERİ'!A45","v":29},{"$f":"IF('1_TPAO İGÇK_TESPİTLERİ'!E45=\"\",\"\",'1_TPAO İGÇK_TESPİTLERİ'!E45)","v":""}]
[{"$f":"'1_TPAO İGÇK_TESPİTLERİ'!A46","v":30},{"$f":"IF('1_TPAO İGÇK_TESPİTLERİ'!E46=\"\",\"\",'1_TPAO İGÇK_TESPİTLERİ'!E46)","v":""}]
[{"$f":"'1_TPAO İGÇK_TESPİTLERİ'!A47","v":31},{"$f":"IF('1_TPAO İGÇK_TESPİTLERİ'!E47=\"\",\"\",'1_TPAO İGÇK_TESPİTLERİ'!E47)","v":""}]
[{"$f":"'1_TPAO İGÇK_TESPİTLERİ'!A48","v":32},{"$f":"IF('1_TPAO İGÇK_TESPİTLERİ'!E48=\"\",\"\",'1_TPAO İGÇK_TESPİTLERİ'!E48)","v":""}]
[{"$f":"'1_TPAO İGÇK_TESPİTLERİ'!A49","v":33},{"$f":"IF('1_TPAO İGÇK_TESPİTLERİ'!E49=\"\",\"\",'1_TPAO İGÇK_TESPİTLERİ'!E49)","v":""}]
[{"$f":"'1_TPAO İGÇK_TESPİTLERİ'!A50","v":34},{"$f":"IF('1_TPAO İGÇK_TESPİTLERİ'!E50=\"\",\"\",'1_TPAO İGÇK_TESPİTLERİ'!E50)","v":""}]
[{"$f":"'1_TPAO İGÇK_TESPİTLERİ'!A51","v":35},{"$f":"IF('1_TPAO İGÇK_TESPİTLERİ'!E51=\"\",\"\",'1_TPAO İGÇK_TESPİTLERİ'!E51)","v":""}]
[{"$f":"'1_TPAO İGÇK_TESPİTLERİ'!A52","v":36},{"$f":"IF('1_TPAO İGÇK_TESPİTLERİ'!E52=\"\",\"\",'1_TPAO İGÇK_TESPİTLERİ'!E52)","v":""}]
[{"$f":"'1_TPAO İGÇK_TESPİTLERİ'!A53","v":37},{"$f":"IF('1_TPAO İGÇK_TESPİTLERİ'!E53=\"\",\"\",'1_TPAO İGÇK_TESPİTLERİ'!E53)","v":""}]
[{"$f":"'1_TPAO İGÇK_TESPİTLERİ'!A54","v":38},{"$f":"IF('1_TPAO İGÇK_TESPİTLERİ'!E54=\"\",\"\",'1_TPAO İGÇK_TESPİTLERİ'!E54)","v":""}]
[{"$f":"'1_TPAO İGÇK_TESPİTLERİ'!A55","v":39},{"$f":"IF('1_TPAO İGÇK_TESPİTLERİ'!E55=\"\",\"\",'1_TPAO İGÇK_TESPİTLERİ'!E55)","v":""}]
[{"$f":"'1_TPAO İGÇK_TESPİTLERİ'!A56","v":40},{"$f":"IF('1_TPAO İGÇK_TESPİTLERİ'!E56=\"\",\"\",'1_TPAO İGÇK_TESPİTLERİ'!E56)","v":""}]
[{"$f":"'1_TPAO İGÇK_TESPİTLERİ'!A57","v":41},{"$f":"IF('1_TPAO İGÇK_TESPİTLERİ'!E57=\"\",\"\",'1_TPAO İGÇK_TESPİTLERİ'!E57)","v":""}]
[{"$f":"'1_TPAO İGÇK_TESPİTLERİ'!A58","v":42},{"$f":"IF('1_TPAO İGÇK_TESPİTLERİ'!E58=\"\",\"\",'1_TPAO İGÇK_TESPİTLERİ'!E58)","v":""}]
[{"$f":"'1_TPAO İGÇK_TESPİTLERİ'!A59","v":43},{"$f":"IF('1_TPAO İGÇK_TESPİTLERİ'!E59=\"\",\"\",'1_TPAO İGÇK_TESPİTLERİ'!E59)","v":""}]
[{"$f":"'1_TPAO İGÇK_TESPİTLERİ'!A60","v":0},{"$f":"IF('1_TPAO İGÇK_TESPİTLERİ'!E60=\"\",\"\",'1_TPAO İGÇK_TESPİTLERİ'!E60)","v":""}]

{"sheet":"TANIMLAR","index":2,"n_rows":8,"n_cols":5,"rows_kept":8,"cut":false,"hidden":true,"merged":[]}
[null,"DENETİM TÜRÜ","BULGU TÜRÜ","ÇALIŞMA DURUMU","Giderilme Durumu"]
[null,"ACİL DURUM DENETİMİ","UYGUNSUZLUK","İŞ DURDURMA\nÇalışma, gerekli düzeltici tedbirler alınana kadar durdurulur.","Giderildi"]
[null,"ÇEVRE DENETİMİ","GELİŞTİRME ÖNERİSİ","ÇALIŞANI UZAKLAŞTIRMA\nÇalışan, iş için istenen gereklilikleri sağlanıncaya kadar çalıştırılmaz. Çalışmanın gerekliliklerini sağlayan başka bir personel tarafından iş devam ettirilebilir.","Giderilmedi"]
[null,"HİJYEN DENETİMİ","İYİ UYGULAMA","15 GÜN TERMİN VERME\nBulgunun giderilmesi için 15 gün süre tanınır."]
[null,"İŞ GÜVENLİĞİ DENETİMİ"]
[null,"İŞ SAĞLIĞI VE GÜVENLİĞİ DENETİMİ"]
[null,"İŞ SAĞLIĞI, GÜVENLİĞİ VE ÇEVRE DENETİMİ"]
[null,"SAĞLIK EKİPMANI DENETİMİ"]

{"sheet":"BULGU KATEGORİLERİ","index":3,"n_rows":19,"n_cols":10,"rows_kept":19,"cut":false,"hidden":true,"merged":[]}
[]
["Acil Durum ve Müdahale","Çalışma Ortamı","Çevre","Dokümantasyon","Güvensiz Hareket","İş Ekipmanları Makine Teçhizat El Aletleri Taşıtlar","İşyeri Hijyeni","Koruyucu Sistemler","Malzeme ve Depolama Güvenliği","Operasyon Güvenliği"]
["Acil Durum Kaçış Ekipmanları","Çalışma Alanının Genişliği ve Yeterliliği","Atıkların Kaynağında Ayrıştırılması","Eğitim, Mesleki Yeterlilik/ Operatörlük Belgesi/Ehliyet ve Bilgilendirme Kayıtları","Emniyetsiz şekilde taşıma, kaldırma, itme veya çekme","Acil Durdurma Sistemleri ve Uyarı/İkaz Mekanizmaları","Genel Hijyen ve Temizlik Koşulları","Ankraj Noktalarının Uygunluğu ve Güvenliği","Depolama ve İstifleme","Acil Durum Prosedürlerinin Entegrasyonu"]
["Acil Durum Algılama ve Uyarı Sistemleri","Genel Çalışma Alanı Düzeni","Atık Kutuları ve Konteynerleri","Güvenlik Bilgi Formları (GBF/SDS)","İşi Kısa Yoldan Yapmaya Çalışmak","Arızalı veya Uygun Olmayan İş Ekipmanı / Makine/ Teçhizat/ El Aleti / Taşıt","Biyolojik Risk Etmenleri","Enerji Kontrol ve Etiketleme (EKED / LOTO)","Etiketleme ve Tanımlama","Kimyasal Reaksiyon ve İşlem Parametrelerinin İzlenmesi"]
["Gaz Algılama Sistemleri","Havalandırma ve Ortam Havası Kontrolü","Atık Toplama ve Geçici Depolama Alanları","İş Ekipmanlarının Periyodik Kontrol Kayıtları","KKD Kullanım İhlalleri","Bağlantı Elemanlarının Uygunluğu","Ergonomik Risk Etmenleri","İzolasyon Sistemleri (Fiziksel / Enerji / Alan)","Paketleme ve Ambalajlama","Yükleme/ Boşaltma ve Nakliye Güvenliği"]
["Haberleşme ve İletişim Sistemleri","Platform ve Merdiven Güvenliği","Çevre Kirliliği ve Döküntüler","İnspekte Kayıtları","Koruyucu Sistemleri Devre Dışı Bırakmak","Elektrik Sistemlerinin Uygunluğu","Fiziksel Risk Etmenleri","Kişisel Koruyucu Donanımlar (KKD)","Standardı Olmayan veya Uygun Olmayan Malzeme Kullanımı"]
["İlk Yardım Ekipmanları","Trafik ve Yürüme Yollarının Düzeni",null,"İş Ekipmanlarının/ Makina-Teçhizatların Bakım Kayıtları","Riski Küçümsemek","Etiketleme ve Kimliklendirme","Gıda Güvenliği","Sızıntı ve Taşma Kontrol Sistemleri"]
["Kaçış Yolları ve Toplanma Alanları","Uyarı Levhaları, Bariyerler ve İşaretlemeler",null,"Makine/ Ekipmanların Kalibrasyon Kayıtları","Tehlikeli Hareketler","Gösterge ve Panel Sistemleri","Kimyasal Risk Etmenleri","Yaşam Hatları ve Düşme Durdurma Sistemleri"]
["Portatif Yangın Söndürücüler (YSC)","Zemin Koşulları ve Temizliği",null,"İş İzin Formları","Uygun olmayan beden pozisyonu ile çalışma (ergonomik risk)","Güvenlik Donanımları ve Koruyucu Muhafazalar","Kişisel Hijyen Olanakları"]
["Yangın Algılama ve Uyarı Sistemleri",null,null,"Ortam Ölçüm Kayıtları","Mevzuat, Prosedür, Talimat vb. İhlalleri","Mekanik Sistemlerin Uygunluğu","Radyasyon Risk Etmenleri"]
["Yangın Söndürme Sistemleri",null,null,"Patlamadan Korunma Dokümanı (PKD)","Yetkisi Dışında İş Ekipmanı Kullanımı","Patlayıcı Ortam (Exproof) Uyumlu Sistemler","Temizlik ve Dezenfeksiyon Uygulamaları"]
[null,null,null,"Planlar (Acil Durum, Eğitim, Tatbikat vb.)","Yetkisiz Giriş","Standart Dışı Ekipman, Alet veya Taşıt Kullanımı"]
[null,null,null,"Prosedürler, Talimatlar ve Formlar",null,"Uyarı ve İkaz Levhaları (Makine özelinde)"]
[null,null,null,"İSG Risk ve Çevresel Boyut Etki Değerlendirme Kayıtları",null,"Basınçlı Sistemlerin Güvenliği"]
[null,null,null,"Sağlık Gözetim Kayıtları"]
[null,null,null,"Su Analiz Raporları"]
[null,null,null,"Tatbikat Kayıtları"]
[null,null,null,"Görevlendirme Belgeleri (OSGB, TMGD, Çevre Görevlisi, vb.)"]
[null,null,null,"Yasal Belgeler (ADR, Araç Muayene, vb.)"]

{"sheet":"3_BULGU KATEGORİLERİ","index":4,"n_rows":39,"n_cols":11,"rows_kept":39,"cut":false,"hidden":false,"merged":[]}
[null,"Dokümantasyon","Çalışma Ortamı","İş Ekipmanları, El Aletleri, Taşıtlar","Koruyucu Sistemler","Acil Durum ve Müdahale","İşyeri Hijyeni","Acil Durum ve Müdahale","Malzeme ve Depolama Güvenliği","Operasyon/ Proses Güvenliği","Güvensiz Hareket"]
[null,"Eğitim, Mesleki Yeterlilik ve Bilgilendirme Kayıtları","İşyeri Düzeni","Güvenlik Donanımları ve Koruyucu Muhafazalar","Kişisel Koruyucu Donanımlar (KKD)","Acil Durum Uyarı ve Alarm Sistemleri","Kimyasal Risk Etmenleri","Çevre Kirliliği ve Döküntüler","Depolama ve İstifleme","Proses Kontrol Sistemlerinin İşlevselliği","KKD Kullanım İhlalleri"]
[null,"→ Çalışanlara verilen İSG, mesleki yeterlilik ve bilgilendirme eğitimlerinin belgelenmesi.","→ Genel çalışma alanının düzenliliği, tertip ve düzen kurallarına uygunluğu.","→ İş ekipmanlarının hareketli parçaları için koruyucu muhafaza, siperlik, sensör gibi güvenlik önlemlerinin uygunluğu.","→ KKD'lerin uygunluğu, kullanım zorunluluğu olan alanlarda kullanımı, ilgili standarda (EN, CE) uygunluğu ve kişiye özel temini.","→ Yangın, gaz kaçağı, deprem vb. acil durumlar için sesli ve/veya görsel uyarı sistemlerinin bulunması, işlevselliği ve periyodik testlerinin yapılması.","→ Solunabilir tozlar, uçucu organik bileşikler, çözücüler, dumanlar vb. kimyasal maddelere maruziyet riski; uygun saklama ve havalandırma koşullarının sağlanması.","→ Yağ, kimyasal, çamur, atık vb. maddelerin çevreye yayılması, toprak/su/hava kirliliği yaratabilecek döküntülerin varlığı ve müdahale şekli.","→ Malzemelerin türüne uygun alanlarda, güvenli ve düzenli şekilde depolanması; düşme, devrilme, tıkanma riskine karşı gerekli önlemlerin alınması.","Otomatik kontrol, alarm ve acil durdurma sistemlerinin düzenli test ve bakımı.","→ Zorunlu kişisel koruyucu donanımların kullanılmaması, eksik veya hatalı şekilde kullanılması."]
[]
[null,"Sağlık Gözetim Kayıtları","Trafik ve Yaya Yollarının Düzeni","                                   ","Enerji Kontrol ve Etiketleme (EKED / LOTO)","Acil Durum Kaçış Ekipmanları","Biyolojik Risk Etmenleri","Atıkların Kaynağında Ayrıştırılması","Etiketleme ve Tanımlama","Kimyasal Reaksiyon ve İşlem Parametrelerinin İzlenmesi","Yasal, Prosedür, Talimat vb. İhlalleri"]
[null,"→ İşe giriş/periyodik sağlık muayeneleri ve portör muayeneleri gibi sağlık kayıtları.","→ Araç-yaya yollarının ayrılması, yönlendirme levhaları, geçiş güvenliği ve düzeni.","→ Acil durdurma butonu, sesli/ışıklı ikaz sistemlerinin işlevselliği ve erişilebilirliği.","→ Elektrik, pnömatik, hidrolik vb. enerji kaynakları üzerinde yapılan bakım ve müdahalelerde enerji izolasyonu ve etiketleme prosedürlerinin uygulanabilirliği.","→ Acil durum anında kullanılacak tahliye merdiveni, kaçış seti, solunum koruyucu gibi ekipmanların uygunluğu ve erişilebilirliği.","→ Küf, bakteri, virüs, parazit gibi biyolojik ajanlara maruziyet; bulaş riskine karşı koruyucu önlemlerin uygulanması (temizlik, dezenfeksiyon, KKD vb.).","→ Tehlikeli ve tehlikesiz atıkların (ambalaj, plastik, metal, kimyasal vb.) ayrı toplanması; renk kodlarına ve etiketlemeye uygunluk.","→ Malzemelerin içerik, kullanım amacı, tehlike sınıfı ve tarih gibi bilgilerle etiketlenmiş ve kolay tanımlanabilir olması.","Proses sıcaklığı, basıncı, debisi ve diğer parametrelerin kontrolü.","→ Mevzuat, şirket prosedürleri, iş talimatları gibi kurallara aykırı davranışlarda bulunulması."]
[]
[null,"İş Ekipmanlarının Periyodik Kontrol, Bakım ve Kalibrasyon Kayıtları","Zemin Koşulları ve Temizliği","Elektrik Sistemlerinin Güvenliği","İzolasyon Sistemleri (Fiziksel / Enerji / Alan)","Yangın Algılama ve Söndürme Sistemleri","Fiziksel Risk Etmenleri","Atık Toplama ve Geçici Depolama Alanları","Taşıma ve Nakliye Koşulları","Yükleme/ Boşaltma ve Nakliye Güvenliği","Yetkisiz Giriş"]
[null,"→ Vinç, forklift, basınçlı kap vb. ekipmanlara ait zorunlu periyodik kontroller ve bakım dokümantasyonu.","→ Zeminin düzgünlüğü, kaymazlık durumu, engel/barikat olup olmadığı ve temizlik seviyesi.","→ Topraklama, kaçak akım rölesi, kablo bütünlüğü, pano düzeni ve genel elektriksel güvenlik.","→ Elektriksel izolasyon, sıcak yüzey izolasyonu, gürültü ve tehlikeli alanların fiziksel izolasyonlarının uygunluğu.","→ Duman dedektörleri, sprinkler sistemleri, yangın tüpleri, yangın dolapları ve sabit söndürme sistemlerinin uygunluğu, etiket durumu ve periyodik kontrolleri.","→ Gürültü, titreşim, sıcaklık, soğuk, aydınlatma, nem, basınç gibi fiziksel koşulların uygunluğu; ortam ölçümleri ve sınır değerlere uyum.","→ Atıkların geçici depolandığı alanların yasal gerekliliklere uygunluğu (zemin kaplaması, sızdırmazlık, işaretleme, sınıflandırma, koruma önlemleri).","→ Malzemelerin el arabası, forklift, vinç vb. ile güvenli şekilde taşınması; taşıma sırasında devrilme, düşme, sıkışma risklerine karşı önlem alınması.","→ Malzemelerin el arabası, forklift, vinç vb. ile güvenli şekilde taşınması; taşıma sırasında devrilme, düşme, sıkışma risklerine karşı önlem alınması. (bunlar sadece TAŞIMA için geçerli gibi, NAKLİYE  ayrılabilir.)","→ Sadece yetkili kişilerin girmesine izin verilen alanlara izinsiz veya bilgisiz şekilde girilmesi."]
[{"$nulls":9},"Ekipman Inspeksiyonları ve Bakımları","→ Sınırlanmış alanlara, çalışmanın sürdüğü veya enerji bulunan bölgelere bilgi/veri alınmadan girilmesi."]
[null,"Yasal Belgeler (SRC, ADR, Operatör Belgeleri vb.)","Uyarı Levhaları, Bariyerler ve İşaretlemeler","Patlayıcı Ortam (Exproof) Uyumlu Sistemler","Yaşam Hatları ve Düşme Durdurma Sistemleri","Kaçış Yolları ve Toplanma Alanları","Ergonomik Risk Etmenleri","Atık Kutuları ve Konteynerleri","Paketleme ve Ambalajlama","Proses ekipmanlarının (basınçlı kaplar, vanalar, sensörler, kontrol cihazları vb.) planlı ve periyodik inspeksiyon, test ve bakım faaliyetlerinin yapılması ve kayıt altına alınması.","Tehlikeli Hareketler"]
[null,"→ Göreve özel yasal yeterlilik belgeleri ve sürücü belgeleri.","→ Tehlike ve bilgi işaretlerinin uygun yerde, görünür ve anlaşılır şekilde konumlandırılması.","→ ATEX zonlarındaki ekipmanların exproof sertifikalı olup olmadığı ve uygun kullanımı.","→ Yatay/dikey yaşam hatları, düşmeye karşı kişisel koruyucu sistemlerin sabitlenme durumu, periyodik kontrol ve sertifikasyonlarının mevcudiyeti.","→ Kaçış yollarının açık, işaretlenmiş ve engellenmemiş olması; toplanma alanı tabelalarının yerinde ve görünür olması.","→ Uygunsuz duruş, tekrarlı hareketler, yük kaldırma, ekran başında çalışma gibi durumlara bağlı kas-iskelet sistemi risklerinin değerlendirilmesi ve önleyici uygulamalar.","→ Alanlarda yeterli sayıda, uygun boyut ve renkte, kapaklı ve etiketli atık kutularının bulunması ve düzenli boşaltılması.","→ Malzemelerin zarar görmeyecek, çevreye yayılmayacak ve kolay taşınacak şekilde ambalajlanmış olması. Özellikle kimyasal ve kırılgan malzemelerde bu kritik öneme sahiptir.",null,"→ Kendisi ya da başkası için tehlike yaratacak dikkatsiz, kontrolsüz ya da kasıtlı davranışlarda bulunulması."]
[]
[null,"Prosedürler, Talimatlar ve Formlar","Platformlar ve Merdivenlerin Güvenliği","Arızalı veya Hatalı İş Ekipmanı / El Aleti / Taşıt","Ankraj Noktaları","İlk Yardım Ekipmanları","Barınma ve Beslenme Koşulları",null,"Standardı Olmayan veya Uygun Olmayan Malzeme Kullanımı",null,"Yetkisi Dışında İş Ekipmanı Kullanımı"]
[null,"→ Uygulamada kullanılan prosedür, çalışma talimatları ve kayıt formlarının güncelliği ve erişilebilirliği.","→ Platform ve merdivenlerin sağlamlığı, korkuluk ve kaymaz yüzey gerekliliklerine uygunluğu.","→ Kullanımda olan ekipman ve araçların çalışır durumda olup olmadığı, arızalı olanların ayrılması.","→ KKD bağlantıları için kullanılan ankraj noktalarının uygunluğu, yerinde montajı ve sağlamlığı (statik test/sertifika kontrolü).","→ İlkyardım çantaları, sedye, göz duşu, acil müdahale seti gibi ekipmanların erişilebilir ve eksiksiz olması.","→ Soyunma odaları, duşlar, yatakhane (varsa), yemekhane ve kantin alanlarının hijyen, yeterlilik ve düzen açısından değerlendirilmesi.",null,"→ Sertifikasız, kalitesiz, orijinal olmayan veya tadilat görmüş malzemelerin tespiti. Kullanım dışı bırakılma ve ayırt edici etiketleme kontrolü.",null,"→ Eğitim veya yetkisi olmadığı halde herhangi bir makine, ekipman ya da aracı çalıştırmak veya kullanmak."]
[]
[null,"Ortam Ölçüm Kayıtları","Çalışma Alanının Genişliği ve Ergonomik Yeterliliği","Uyarı ve İkaz Levhaları","Sızıntı ve Taşma Kontrol Sistemleri","Acil Müdahale Ekipmanları","Gıda Güvenliği",null,null,null,"Koruyucu Sistemleri Devre Dışı Bırakmak"]
[null,"→ Gürültü, toz, gaz vb. parametrelere ilişkin ölçüm sonuçları ve uygunluk belgeleri.","→ Çalışan başına düşen alan, hareket serbestliği, ekipman yerleşiminin ergonomik yeterliliği.","→ Kullanım alanlarına yerleştirilmiş uygun ve görünür uyarı levhalarının mevcudiyeti.","→ Kimyasal ve sıvı maddeler için taşma tavası, ikincil kaplama, taşkan borusu gibi sistemlerin varlığı ve etkinliği.","→ Kimyasal dökülme seti, sızıntı bariyeri, acil temizlik kitleri gibi olay türüne özel müdahale ekipmanlarının uygunluğu.","→ Tüketilen gıdaların tedarik zinciri, hazırlanma koşulları, sıcaklık kontrolü, personel hijyeni ve çapraz bulaşma önlemleri.",null,null,null,"→ Makine veya ekipman üzerindeki emniyet sistemlerini bilinçli olarak geçersiz kılmak veya etkisiz hale getirmek."]
[]
[null,"Su Analiz Raporları","Havalandırma ve Ortam Havası Kontrolü","Mekanik Sistemlerin Güvenliği",null,"Gaz Algılama Sistemleri","Radyasyon Risk Etmenleri",null,null,null,"Riski Küçümsemek"]
[null,"→ İçme, kullanma veya proses sularına ait mikrobiyolojik ve kimyasal analiz kayıtları.","→ Doğal ve/veya mekanik havalandırmanın yeterliliği, ortam havasının tazeliği ve emisyon kontrolü.","→ Dişli, kayış, zincir, piston vb. mekanik aksamların korunaklı ve sağlam şekilde çalışıyor olması.",null,"→ Yanıcı, patlayıcı veya toksik gazlara karşı sabit veya taşınabilir gaz dedektörlerinin varlığı, kalibrasyon durumu ve konum uygunluğu.","→ İyonize ve non-iyonize radyasyona maruziyet riski olan alanlarda doz ölçümü, koruyucu sistemler ve uyarı işaretlerinin varlığı.",null,null,null,"→ Tehlike ve risklerin farkında olunmasına rağmen gerekli önlemleri almadan işin sürdürülmesi."]
[]
[null,"Risk ve Çevresel Boyut Etki Değerlendirme Kayıtları",null,"Bağlantı Elemanlarının Uygunluğu",null,"Haberleşme ve İletişim Sistemleri","Temizlik ve Dezenfeksiyon Uygulamaları",null,null,null,"İşi Kısa Yoldan Yapmaya Çalışmak"]
[null,"→ Tehlike tanımlamaları, risk analizleri, çevresel etki analizleri ve kontrol önlemleri.",null,"→ Basınçlı hat bağlantıları, kaldırma-indirme ekipmanlarının kancaları, zincirler, makine montaj bağlantılarının sağlamlığı ve uygunluğu.",null,"→ Acil durumda kullanılacak telsiz, siren, anons sistemi, telefon hattı gibi iletişim araçlarının erişilebilirliği ve çalışır durumda olması","→ Ortak kullanım alanları (lavabolar, yemekhane, dinlenme alanları vb.) için temizlik sıklığı, sorumluların belirlenmiş olup olmadığı, kullanılan dezenfektanların etkinliği ve kayıt sistemi.",null,null,null,"→ Zamandan tasarruf amacıyla güvenli olmayan, prosedüre aykırı yöntemlerin tercih edilmesi."]
[]
[null,"Patlamadan Korunma Dokümanı (PKD)",null,"Gösterge ve Panel Sistemleri",null,null,"Kişisel Hijyen Olanakları",null,null,null,"Uygun olmayan beden pozisyonu ile çalışma (ergonomik risk)"]
[null,"→ ATEX kapsamındaki alanlar için hazırlanan, güncel ve yerinde bulunması gereken doküman.",null,"→ Manometre, termometre, kontrol panelleri gibi izleme sistemlerinin çalışır durumda ve okunabilir olması.",null,null,"→ Çalışanların el yıkama, temizlik ve hijyen ihtiyaçlarını karşılayabileceği uygun donanımların (sıvı sabun, kâğıt havlu, dezenfektan vb.) varlığı.",null,null,null,"→ Eğilerek, zorlanarak, dengesiz şekilde veya uzun süreli rahatsız edici pozisyonlarda çalışılması."]
[]
[null,"Güvenlik Bilgi Formları (SDS)",null,"Etiketleme ve Kimliklendirme",{"$nulls":6},"Emniyetsiz şekilde taşıma, kaldırma, itme veya çekme"]
[null,"→ Kimyasallara ilişkin MSDS/SDS belgelerinin mevcutluğu, güncelliği ve çalışan erişimi.",null,"→ Ekipmanların tanımlayıcı etiketlerinin (varlık no, periyodik kontrol etiketi vb.) yerinde ve okunabilir olması.",{"$nulls":6},"→ Malzemenin uygun yöntemle kaldırılmaması, kontrolsüz bırakılması, dengesiz şekilde itilip çekilmesi."]
[]
[null,"İş İzin Formları",null,"Standart Dışı Ekipman, Alet veya Taşıt Kullanımı"]
[null,"→ Sıcak çalışma, kapalı alan, kazı vb. özel iş izin formlarının eksiksiz ve uygun şekilde düzenlenmesi.",null,"→ CE, TSE vb. uygunluk belgeleri olmayan, üzerinde tadilat yapılmış veya standart dışı kullanılan ekipmanların tespiti."]
[]
[null,"Planlar (Acil Durum, Eğitim, Tatbikat vb.)",null,"Basınçlı Sistemlerin Güvenliği"]
[null,"→ Tesisin acil durum eylem planı, yıllık eğitim ve denetim planları gibi planların varlığı ve güncelliği.",null,"Basınçlı kaplar, kazanlar, boru hatlarının periyodik muayene ve testlerinin yapılması."]
[]
[null,"Tatbikat Kayıtları"]
[null,"→ Yangın, tahliye, kimyasal dökülme vb. tatbikatlara ait katılım ve değerlendirme kayıtları"]

{"sheet":"PUANLAMA","index":5,"n_rows":22,"n_cols":9,"rows_kept":22,"cut":false,"hidden":true,"merged":[]}
[]
[null,"İSGÇ İHLAL KONUSU","İSGÇ İHLAL MADDESİ","KOD","UYGULANACAK CEZALAR\n(SERVİS HİZMETLERİ)","AĞIRLIK","HATA PUANI","KIRILACAK PUAN","İŞ DURDURMA VE ÇALIŞANI UZAKLAŞTIRMA DURUMLARI"]
[null,"ATIK YÖNETİMİ","ATIK BERTARAFI UYGUNSUZLUĞU (MEVZUATA AYKIRILIK)","T","(GÜNLÜK ÜCRET  * %10 * TESPİT EDİLEN UYGUNSUZLUK SAYISI) + KAMU KURUMLARI TARAFINDAN KESİLEN ÇEVRE CEZASI",10,10,{"$f":"G3/2","v":5},"15 GÜN TERMİN VERME\nBulgunun giderilmesi için 15 gün süre tanınır."]
[null,"ATIK YÖNETİMİ","ATIKLARIN AYRI TOPLANMAMASI, UYGUNSUZ ATIK/ DEPOLAMA ALANI, SIFIR ATIK KURALLARINA UYGUN ÇALIŞMAMAK","S","(GÜNLÜK ÜCRET  * %10 * TESPİT EDİLEN UYGUNSUZLUK SAYISI) + KAMU KURUMLARI TARAFINDAN KESİLEN ÇEVRE CEZASI",10,10,5,"15 GÜN TERMİN VERME\nBulgunun giderilmesi için 15 gün süre tanınır."]
[null,"SAĞLIK GÖZETİMİ","ÇALIŞANIN İŞE GİRİŞ/PERİYODİK SAĞLIK MUAYENESİ OLMADAN SAHADA ÇALIŞMASI ","L","GÜNLÜK ÜCRET * %10 * KİŞİ SAYISI",10,10,5,"ÇALIŞANI UZAKLAŞTIRMA\nÇalışan, iş için istenen gereklilikleri sağlanıncaya kadar çalıştırılmaz. Çalışmanın gerekliliklerini sağlayan başka bir personel tarafından iş devam ettirilebilir."]
[null,"ÇEVRE KİRLİLİĞİ","ÇALIŞMA ORTAMI VEYA ÇEVRESİNDE ÇEVRE (HAVA-SU- TOPRAK) KİRLİLİĞİNE NEDEN OLMAK","H","(GÜNLÜK ÜCRET * %10 * KİRLİLİK SAYISI) + BERTARAF MALİYETİ + BAKANLIK TARAFINDAN KESİLEN ÇEVRE CEZASI",10,10,5,"15 GÜN TERMİN VERME\nBulgunun giderilmesi için 15 gün süre tanınır."]
[null,"GENEL","DENETİME ENGEL OLMAK","E","GÜNLÜK ÜCRET",100,100,50,"İŞ DURDURMA\nÇalışma, gerekli düzeltici tedbirler alınana kadar durdurulur."]
[null,"OLAY YÖNETİMİ","İSGÇ İLE MEYDANA GELEN OLAYI İKİ GÜN İÇERİSİNDE YAZILI OLARAK BİLDİRMEMEK, BİLGİ SAKLAMAK VEYA YANILTICI BEYANDA BULUNMAK","G","GÜNLÜK ÜCRET",100,100,50,"15 GÜN TERMİN VERME\nBulgunun giderilmesi için 15 gün süre tanınır."]
[null,"GÖREVLENDİRMELER","İŞ GÜVENLİĞİ UZMANI, İŞYERİ HEKİMİ, DİĞER SAĞLIK PERSONELİ, TEHLİKELİ MADDE GÜVENLİK DANIŞMANI GÖREVLENDİRMEME ","F","UYGULAMADIĞI GÜN*GÜNLÜK ÜCRET",20,20,10,"İŞ DURDURMA\nÇalışma, gerekli düzeltici tedbirler alınana kadar durdurulur."]
[null,"MAKİNA/EKİPMAN/MALZEME","KORUYUCULARI, GÜVENLİK ÖNLEMLERİNİ DEVRE DIŞI BIRAKMAK (GÜVENLİK SWİTCHLERİ, MAKİNA KORUYUCULARI, ACİL STOP BUTONLARI, VB.)","P","GÜNLÜK ÜCRET * %10 * EKİPMAN SAYISI",10,10,5,"İŞ DURDURMA\nÇalışma, gerekli düzeltici tedbirler alınana kadar durdurulur."]
[null,"KİŞİSEL KORUYUCU DONANIMLAR","MEVZUATA VE İŞE UYGUN OLARAK KİŞİSEL KORUYUCU DONANIM (KKD) KULLANMAMAK, KUSURLU VEYA YANLIŞ KİŞİSEL KORUYUCU DONANIM KULLANMAK","Q","GÜNLÜK ÜCRET * %10 * KİŞİ SAYISI",10,10,5,"15 GÜN TERMİN VERME\nBulgunun giderilmesi için 15 gün süre tanınır."]
[null,"MAKİNA/EKİPMAN/MALZEME","MEVZUATA/ŞARTNAMEYE UYGUN OLARAK GÜVENLİK EKİPMANLARINI (GAZ SENSÖRLERİ, ÖLÇÜM ALETLERİ, VB.) KULLANMAMAK ","N","GÜNLÜK ÜCRET * %10 * EKİPMAN SAYISI",10,10,5,"15 GÜN TERMİN VERME\nBulgunun giderilmesi için 15 gün süre tanınır."]
[null,"MAKİNA/EKİPMAN/MALZEME","MEVZUATA/ŞARTNAMEYE UYGUN OLARAK PERİYODİK KONTROLÜ YAPILMAMIŞ İŞ EKİPMANI KULLANMAK (KULE EKIPMAN INSPEKTELERİ, SEPETLİ ARAÇ, VİNÇ, SAPAN, HER TÜRLÜ YANGIN SÖNDÜRME SİSTEMİ, VB","M","GÜNLÜK ÜCRET * %10 * EKİPMAN SAYISI",10,10,5,"İŞ DURDURMA\nÇalışma, gerekli düzeltici tedbirler alınana kadar durdurulur."]
[null,"EĞİTİM","MEVZUATTA BELİRTİLEN ZORUNLU TEMEL İSG EĞİTİMLERİNİN SÜRESİNDE VERİLMEMESİ ","I","GÜNLÜK ÜCRET * %10 * KİŞİ SAYISI",10,10,5,"ÇALIŞANI UZAKLAŞTIRMA\nÇalışan, iş için istenen gereklilikleri sağlanıncaya kadar çalıştırılmaz. Çalışmanın gerekliliklerini sağlayan başka bir personel tarafından iş devam ettirilebilir."]
[null,"EĞİTİM","OPERATÖRLÜK VE MESLEKİ YETERLİLİK BELGESİ OLMAYAN ÇALIŞANLARIN ÇALIŞTIRILMASI (FORKLİFT, VİNÇ OPERATÖRÜ, SONDÖR, ELEKTRİKÇİ, VB.)","J","GÜNLÜK ÜCRET * %20 * KİŞİ SAYISI",20,20,10,"İŞ DURDURMA\nÇalışma, gerekli düzeltici tedbirler alınana kadar durdurulur."]
[null,"RİSKLİ İŞLERİN YÜRÜTÜMÜ","RİSKLİ İŞLERDE (KAPALI ALAN, YÜKSEKTE ÇALIŞMA, SICAK İŞLER, BAKIM ÇALIŞMALARI, VB.) KURALLARA UYGUN ÇALIŞMAMAK","R","GÜNLÜK ÜCRET * %10 * TESPİT EDİLEN UYGUNSUZLUK SAYISI",10,10,5,"İŞ DURDURMA\nÇalışma, gerekli düzeltici tedbirler alınana kadar durdurulur."]
[null,"EĞİTİM","SÖZLEŞMEDE BELİRTİLEN YETKİNLİK VE EĞİTİMLERİ SAĞLAMAYAN PERSONELİN ÇALIŞTIRILMASI (IWCF, KAPALI ALAN ÇALIŞMALARI, YÜKSEKTE ÇALIŞMA, VB.)","K","\nGÜNLÜK ÜCRET * %30 * KİŞİ SAYISI",30,30,15,"İŞ DURDURMA\nÇalışma, gerekli düzeltici tedbirler alınana kadar durdurulur."]
[null,"MAKİNA/EKİPMAN/MALZEME","ŞARTNAMEYE VEYA İŞE UYGUN OLMAYAN VEYA HASARLI ALET & EKİPMAN KULLANMAK","O","GÜNLÜK ÜCRET * %10 * EKİPMAN SAYISI",10,10,5,"15 GÜN TERMİN VERME\nBulgunun giderilmesi için 15 gün süre tanınır."]
[null,"GENEL","TABLODA YER ALMAYAN İSGÇ MEVZUATI/ SÖZLEŞME KAPSAMINDA TESPİT EDİLMİŞ UYGUNSUZLUKLAR ","A","GÜNLÜK ÜCRET* %10 * TESPİT EDİLEN UYGUNSUZLUK SAYISI ",2,2,1,"15 GÜN TERMİN VERME\nBulgunun giderilmesi için 15 gün süre tanınır."]
[null,"GENEL","TALEP EDİLEN İSGÇ BİLGİ VE BELGELERİNİ İDARE TARAFINDAN VERİLEN SÜRE İÇERİSİNDE SAĞLAMAMAK, YANILTICI BİLGİ VERMEK (DENETİM RAPORLARI HARİÇ)","D","UYGULANMAYAN SAAT SAYISI * (GÜNLÜK ÜCRET/24)",100,100,50,"15 GÜN TERMİN VERME\nBulgunun giderilmesi için 15 gün süre tanınır."]
[null,"GENEL","TPAO İŞ DURDURMA TALEBİNİN UYGULANMAMASI","C","UYGULANMAYAN SAAT SAYISI * (GÜNLÜK ÜCRET/24)",100,100,50,"15 GÜN TERMİN VERME\nBulgunun giderilmesi için 15 gün süre tanınır."]
[null,"GENEL","TPAO TARAFINDAN YAPILAN İSG GÖZETİMLERİNDE/DENETİMLERİNDE TESPİT EDİLEN BU TABLO DIŞINDA KALAN UYGUNSUZLUKLARIN/EKSİKLİKLERİN İDARE TARAFINDAN VERİLEN SÜRESİ İÇERİSİNDE GİDERİLMEMESİ DURUMUNDA","B","GÜNLÜK ÜCRET * %10 * GİDERİLMEYEN UYGUNSUZLUK SAYISI",10,10,5,"15 GÜN TERMİN VERME\nBulgunun giderilmesi için 15 gün süre tanınır."]